[Event "Titled Tuesday Blitz September 13 Early 2022"]
[White "Pranav, V"]
[Black "Dubov, Daniil"]
[WhiteFideId "25060783"]
[BlackFideId "24126055"]
[WhiteElo "2390"]
[BlackElo "2791"]
[Result "0-1"]
[Round "10"]
[TimeControl "180+1"]
[Date "2022.09.13"]
[WhiteClock "0:00:01"]
[BlackClock "0:00:29"]

1. Nf3 {[%clk 0:03:00]}  d5 {[%clk 0:02:59]} 2. g3 {[%clk 0:03:01]}  Nf6 {[%clk 0:02:53]} 3. Bg2 {[%clk 0:03:00]}  c5 {[%clk 0:02:52]} 4. O-O {[%clk 0:03:01]}  e6 {[%clk 0:02:51]} 5. d3 {[%clk 0:03:01]}  Nc6 {[%clk 0:02:51]} 6. Nbd2 {[%clk 0:03:02]}  Be7 {[%clk 0:02:49]} 7. e4 {[%clk 0:03:02]}  O-O {[%clk 0:02:49]} 8. e5 {[%clk 0:03:03]}  Ne8 {[%clk 0:02:49]} 9. Re1 {[%clk 0:03:03]}  b5 {[%clk 0:02:49]} 10. Nf1 {[%clk 0:03:04]}  a5 {[%clk 0:02:48]} 11. h4 {[%clk 0:03:04]}  b4 {[%clk 0:02:48]} 12. Bf4 {[%clk 0:03:05]}  a4 {[%clk 0:02:48]} 13. a3 {[%clk 0:03:04]}  Nc7 {[%clk 0:02:46]} 14. h5 {[%clk 0:03:05]}  h6 {[%clk 0:02:43]} 15. Ne3 {[%clk 0:03:04]}  Nb5 {[%clk 0:02:31]} 16. Ng4 {[%clk 0:03:03]}  Ncd4 {[%clk 0:02:18]} 17. Nxd4 {[%clk 0:02:35]}  Nxd4 {[%clk 0:02:18]} 18. c3 {[%clk 0:02:31]}  bxc3 {[%clk 0:02:16]} 19. bxc3 {[%clk 0:02:32]}  Nf5 {[%clk 0:02:14]} 20. Rb1 {[%clk 0:02:26]}  Ba6 {[%clk 0:02:07]} 21. Bf1 {[%clk 0:01:55]}  Qa5 {[%clk 0:02:01]} 22. Qc1 {[%clk 0:01:51]}  Rab8 {[%clk 0:01:58]} 23. Nf6+ {[%clk 0:01:33]}  Kh8 {[%clk 0:01:40]} 24. Rxb8 {[%clk 0:01:26]}  Rxb8 {[%clk 0:01:41]} 25. c4 {[%clk 0:01:12]}  Rd8 {[%clk 0:01:17]} 26. Ng4 {[%clk 0:00:55]}  dxc4 {[%clk 0:01:07]} 27. dxc4 {[%clk 0:00:56]}  Bb7 {[%clk 0:01:07]} 28. Bg2 {[%clk 0:00:35]}  Bxg2 {[%clk 0:00:58]} 29. Kxg2 {[%clk 0:00:36]}  Qa8+ {[%clk 0:00:59]} 30. Kh3 {[%clk 0:00:34]}  Qf3 {[%clk 0:00:57]} 31. Qc2 {[%clk 0:00:24]}  Rd4 {[%clk 0:00:56]} 32. Nh2 {[%clk 0:00:10]}  Qxh5+ {[%clk 0:00:56]} 33. Kg2 {[%clk 0:00:10]}  Qg6 {[%clk 0:00:57]} 34. Qc1 {[%clk 0:00:05]}  Rd3 {[%clk 0:00:33]} 35. Kf1 {[%clk 0:00:03]}  Qh5 {[%clk 0:00:30]} 36. g4 {[%clk 0:00:02]}  Qh3+ {[%clk 0:00:29]} 37. Kg1 {[%clk 0:00:02]}  Nh4 {[%clk 0:00:30]} 38. Re3 {[%clk 0:00:01]}  Rd1+ {[%clk 0:00:28]} 39. Qxd1 {[%clk 0:00:01]}  Qg2# {[%clk 0:00:29]} 0-1


[Site "https://www.chess.com"]

[Event "Titled Tuesday Blitz September 13 Early 2022"]
[White "Prohaszka, Peter"]
[Black "Aloma Vidal, Robert"]
[WhiteFideId "726265"]
[BlackFideId "2260409"]
[WhiteElo "2626"]
[BlackElo "2435"]
[Result "0-1"]
[Round "10"]
[TimeControl "180+1"]
[Date "2022.09.13"]
[WhiteClock "0:00:01"]
[BlackClock "0:00:20"]

1. Nf3 {[%clk 0:02:56]}  d5 {[%clk 0:02:59]} 2. g3 {[%clk 0:02:49]}  Bg4 {[%clk 0:02:53]} 3. Bg2 {[%clk 0:02:49]}  Nd7 {[%clk 0:02:53]} 4. h3 {[%clk 0:02:48]}  Bh5 {[%clk 0:02:49]} 5. c4 {[%clk 0:02:48]}  dxc4 {[%clk 0:02:40]} 6. Na3 {[%clk 0:02:40]}  e5 {[%clk 0:02:39]} 7. Nxc4 {[%clk 0:02:39]}  e4 {[%clk 0:02:29]} 8. Nfe5 {[%clk 0:02:36]}  Ngf6 {[%clk 0:02:22]} 9. Qc2 {[%clk 0:02:09]}  Nxe5 {[%clk 0:02:17]} 10. Nxe5 {[%clk 0:02:10]}  Bd6 {[%clk 0:02:17]} 11. Nc4 {[%clk 0:02:05]}  O-O {[%clk 0:02:14]} 12. b3 {[%clk 0:01:57]}  Re8 {[%clk 0:02:11]} 13. Bb2 {[%clk 0:01:56]}  b5 {[%clk 0:02:02]} 14. Ne3 {[%clk 0:01:55]}  c5 {[%clk 0:01:58]} 15. a4 {[%clk 0:01:44]}  a6 {[%clk 0:01:56]} 16. g4 {[%clk 0:01:04]}  Bg6 {[%clk 0:01:56]} 17. axb5 {[%clk 0:01:04]}  axb5 {[%clk 0:01:55]} 18. Rxa8 {[%clk 0:01:05]}  Qxa8 {[%clk 0:01:55]} 19. O-O {[%clk 0:01:06]}  h5 {[%clk 0:01:46]} 20. Ra1 {[%clk 0:01:06]}  Qc8 {[%clk 0:01:30]} 21. g5 {[%clk 0:00:39]}  Nd7 {[%clk 0:01:30]} 22. Ra6 {[%clk 0:00:36]}  Qxa6 {[%clk 0:01:25]} 23. Nd5 {[%clk 0:00:36]}  Qa2 {[%clk 0:01:08]} 24. Nc3 {[%clk 0:00:27]}  Qa8 {[%clk 0:01:06]} 25. Nxb5 {[%clk 0:00:26]}  Be5 {[%clk 0:00:49]} 26. Bxe5 {[%clk 0:00:24]}  Rxe5 {[%clk 0:00:50]} 27. h4 {[%clk 0:00:19]}  Qb8 {[%clk 0:00:44]} 28. Qc4 {[%clk 0:00:16]}  Nb6 {[%clk 0:00:44]} 29. Qc3 {[%clk 0:00:16]}  Nd5 {[%clk 0:00:43]} 30. Qg3 {[%clk 0:00:16]}  Re8 {[%clk 0:00:38]} 31. Nd6 {[%clk 0:00:14]}  Rd8 {[%clk 0:00:38]} 32. Nxe4 {[%clk 0:00:11]}  Bxe4 {[%clk 0:00:36]} 33. Qxb8 {[%clk 0:00:08]}  Rxb8 {[%clk 0:00:35]} 34. Bxe4 {[%clk 0:00:09]}  Nf4 {[%clk 0:00:30]} 35. e3 {[%clk 0:00:08]}  Ne2+ {[%clk 0:00:26]} 36. Kf1 {[%clk 0:00:08]}  Nc1 {[%clk 0:00:27]} 37. Ke1 {[%clk 0:00:05]}  Nxb3 {[%clk 0:00:26]} 38. g6 {[%clk 0:00:04]}  Rd8 {[%clk 0:00:24]} 39. d3 {[%clk 0:00:03]}  fxg6 {[%clk 0:00:22]} 40. Bxg6 {[%clk 0:00:04]}  Kf8 {[%clk 0:00:22]} 41. Ke2 {[%clk 0:00:03]}  Rd6 {[%clk 0:00:21]} 42. Bf5 {[%clk 0:00:01]}  g6 {[%clk 0:00:21]} 43. Be4 {[%clk 0:00:02]}  Kg7 {[%clk 0:00:22]} 44. f4 {[%clk 0:00:02]}  Kf6 {[%clk 0:00:22]} 45. Ke1 {[%clk 0:00:02]}  c4 {[%clk 0:00:20]} 46. dxc4 {[%clk 0:00:02]}  Nc5 {[%clk 0:00:21]} 47. Bc2 {[%clk 0:00:02]}  Rb6 {[%clk 0:00:21]} 48. Kd2 {[%clk 0:00:02]}  Rb2 {[%clk 0:00:21]} 49. Kc3 {[%clk 0:00:02]}  Ra2 {[%clk 0:00:21]} 50. e4 {[%clk 0:00:01]}  Ne6 {[%clk 0:00:20]} 51. e5+ {[%clk 0:00:01]}  Kf7 {[%clk 0:00:20]} 0-1


[Site "https://www.chess.com"]

[Event "Titled Tuesday Blitz September 13 Early 2022"]
[White "Tari, Aryan"]
[Black "Vidit, Santosh Gujrathi"]
[WhiteFideId "1510045"]
[BlackFideId "5029465"]
[WhiteElo "2612"]
[BlackElo "2654"]
[Result "0-1"]
[Round "10"]
[TimeControl "180+1"]
[Date "2022.09.13"]
[WhiteClock "0:00:03"]
[BlackClock "0:00:11"]

1. e4 {[%clk 0:03:00]}  c5 {[%clk 0:03:00]} 2. Nc3 {[%clk 0:02:56]}  Nc6 {[%clk 0:03:00]} 3. f4 {[%clk 0:02:56]}  g6 {[%clk 0:02:59]} 4. Nf3 {[%clk 0:02:57]}  Bg7 {[%clk 0:03:00]} 5. Bb5 {[%clk 0:02:58]}  Nd4 {[%clk 0:02:57]} 6. O-O {[%clk 0:02:58]}  Nxb5 {[%clk 0:02:54]} 7. Nxb5 {[%clk 0:02:59]}  d6 {[%clk 0:02:54]} 8. d3 {[%clk 0:02:55]}  a6 {[%clk 0:02:51]} 9. Nc3 {[%clk 0:02:55]}  b5 {[%clk 0:02:51]} 10. Qe1 {[%clk 0:02:55]}  b4 {[%clk 0:02:50]} 11. Nd5 {[%clk 0:02:52]}  e6 {[%clk 0:02:48]} 12. Ne3 {[%clk 0:02:52]}  Ne7 {[%clk 0:02:35]} 13. Kh1 {[%clk 0:02:41]}  O-O {[%clk 0:02:29]} 14. Rb1 {[%clk 0:02:36]}  f5 {[%clk 0:02:13]} 15. e5 {[%clk 0:02:22]}  dxe5 {[%clk 0:02:09]} 16. Nxe5 {[%clk 0:02:22]}  Bb7 {[%clk 0:02:08]} 17. N3c4 {[%clk 0:02:20]}  Nd5 {[%clk 0:02:05]} 18. Qf2 {[%clk 0:02:00]}  Qc7 {[%clk 0:02:04]} 19. Bd2 {[%clk 0:01:58]}  a5 {[%clk 0:02:04]} 20. Rbe1 {[%clk 0:01:57]}  a4 {[%clk 0:02:04]} 21. Nf3 {[%clk 0:01:53]}  Rfe8 {[%clk 0:01:59]} 22. Qh4 {[%clk 0:01:48]}  Bf6 {[%clk 0:01:45]} 23. Qg3 {[%clk 0:01:42]}  Ba6 {[%clk 0:01:43]} 24. Nfe5 {[%clk 0:01:39]}  Rad8 {[%clk 0:01:10]} 25. Re2 {[%clk 0:01:38]}  Bg7 {[%clk 0:01:07]} 26. Rfe1 {[%clk 0:01:30]}  Nb6 {[%clk 0:01:06]} 27. b3 {[%clk 0:01:23]}  axb3 {[%clk 0:01:04]} 28. axb3 {[%clk 0:01:23]}  Nd5 {[%clk 0:01:01]} 29. h4 {[%clk 0:01:12]}  Nf6 {[%clk 0:01:00]} 30. Nf3 {[%clk 0:01:12]}  Nh5 {[%clk 0:00:58]} 31. Qh2 {[%clk 0:01:11]}  Bb7 {[%clk 0:00:52]} 32. Ng5 {[%clk 0:01:09]}  Bd5 {[%clk 0:00:47]} 33. Nxe6 {[%clk 0:00:53]}  Bxe6 {[%clk 0:00:47]} 34. Rxe6 {[%clk 0:00:53]}  Rxe6 {[%clk 0:00:48]} 35. Rxe6 {[%clk 0:00:54]}  Ra8 {[%clk 0:00:48]} 36. Re1 {[%clk 0:00:30]}  Bd4 {[%clk 0:00:47]} 37. Qh3 {[%clk 0:00:23]}  Qd8 {[%clk 0:00:44]} 38. Be3 {[%clk 0:00:16]}  Bc3 {[%clk 0:00:42]} 39. Rf1 {[%clk 0:00:14]}  Ra2 {[%clk 0:00:41]} 40. Bxc5 {[%clk 0:00:13]}  Rxc2 {[%clk 0:00:41]} 41. Bf2 {[%clk 0:00:12]}  Nxf4 {[%clk 0:00:30]} 42. Qf3 {[%clk 0:00:12]}  Nh5 {[%clk 0:00:29]} 43. d4 {[%clk 0:00:05]}  Nf6 {[%clk 0:00:26]} 44. Ne5 {[%clk 0:00:05]}  Ne4 {[%clk 0:00:23]} 45. Bg3 {[%clk 0:00:04]}  Qxd4 {[%clk 0:00:19]} 46. Nc4 {[%clk 0:00:02]}  Ra2 {[%clk 0:00:13]} 47. Be5 {[%clk 0:00:02]}  Qd8 {[%clk 0:00:12]} 48. Qf4 {[%clk 0:00:02]}  Bxe5 {[%clk 0:00:11]} 49. Qxe5 {[%clk 0:00:02]}  Qxh4+ {[%clk 0:00:11]} 50. Kg1 {[%clk 0:00:03]}  Qg5 {[%clk 0:00:11]} 0-1


[Site "https://www.chess.com"]

[Event "Titled Tuesday Blitz September 13 Early 2022"]
[White "Ter-Sahakyan, Samvel"]
[Black "Sadhwani, Raunak"]
[WhiteFideId "13302531"]
[BlackFideId "35093487"]
[WhiteElo "2604"]
[BlackElo "2656"]
[Result "1-0"]
[Round "10"]
[TimeControl "180+1"]
[Date "2022.09.13"]
[WhiteClock "0:00:16"]
[BlackClock "0:00:07"]

1. e4 {[%clk 0:03:00]}  e5 {[%clk 0:03:00]} 2. Nf3 {[%clk 0:03:00]}  Nc6 {[%clk 0:03:01]} 3. Bb5 {[%clk 0:03:00]}  Nge7 {[%clk 0:03:01]} 4. Nc3 {[%clk 0:02:57]}  Ng6 {[%clk 0:03:01]} 5. h4 {[%clk 0:02:56]}  Nd4 {[%clk 0:02:57]} 6. h5 {[%clk 0:02:41]}  Nf4 {[%clk 0:02:57]} 7. Nxd4 {[%clk 0:02:41]}  exd4 {[%clk 0:02:58]} 8. Qf3 {[%clk 0:02:42]}  Ne6 {[%clk 0:02:38]} 9. Ne2 {[%clk 0:02:31]}  c6 {[%clk 0:02:38]} 10. Bc4 {[%clk 0:02:15]}  b5 {[%clk 0:02:24]} 11. Bb3 {[%clk 0:02:03]}  c5 {[%clk 0:01:52]} 12. Bd5 {[%clk 0:02:00]}  Rb8 {[%clk 0:01:52]} 13. d3 {[%clk 0:01:59]}  Rb6 {[%clk 0:01:44]} 14. Ng3 {[%clk 0:01:52]}  Bb7 {[%clk 0:01:33]} 15. Bd2 {[%clk 0:01:48]}  b4 {[%clk 0:01:33]} 16. Nf5 {[%clk 0:01:40]}  Rg8 {[%clk 0:01:03]} 17. a3 {[%clk 0:01:30]}  bxa3 {[%clk 0:00:48]} 18. Rxa3 {[%clk 0:01:28]}  Rxb2 {[%clk 0:00:43]} 19. O-O {[%clk 0:01:27]}  g6 {[%clk 0:00:43]} 20. Ng3 {[%clk 0:01:06]}  Qb8 {[%clk 0:00:36]} 21. Rfa1 {[%clk 0:00:57]}  Bd6 {[%clk 0:00:23]} 22. Rxa7 {[%clk 0:00:48]}  Bxd5 {[%clk 0:00:22]} 23. exd5 {[%clk 0:00:48]}  Rb1+ {[%clk 0:00:22]} 24. Rxb1 {[%clk 0:00:31]}  Qxb1+ {[%clk 0:00:22]} 25. Kh2 {[%clk 0:00:31]}  Nc7 {[%clk 0:00:16]} 26. Qf6 {[%clk 0:00:23]}  Qb6 {[%clk 0:00:16]} 27. Bg5 {[%clk 0:00:14]}  Bxg3+ {[%clk 0:00:07]} 28. fxg3 {[%clk 0:00:15]}  Qxf6 {[%clk 0:00:07]} 29. Bxf6 {[%clk 0:00:16]} 1-0


[Site "https://www.chess.com"]

[Event "Titled Tuesday Blitz September 13 Early 2022"]
[White "Visakh N R"]
[Black "Yurovskykh, Oleksandr"]
[WhiteFideId "25012223"]
[BlackFideId "14134020"]
[WhiteElo "2448"]
[BlackElo "2303"]
[Result "1-0"]
[Round "10"]
[TimeControl "180+1"]
[Date "2022.09.13"]
[WhiteClock "0:02:16"]
[BlackClock "0:00:12"]

1. e4 {[%clk 0:03:00]}  d5 {[%clk 0:02:58]} 2. Nc3 {[%clk 0:02:58]}  d4 {[%clk 0:02:58]} 3. Nce2 {[%clk 0:02:58]}  e5 {[%clk 0:02:56]} 4. c3 {[%clk 0:02:58]}  d3 {[%clk 0:02:50]} 5. Ng3 {[%clk 0:02:58]}  c5 {[%clk 0:02:48]} 6. Qb3 {[%clk 0:02:56]}  Nc6 {[%clk 0:02:05]} 7. Qb5 {[%clk 0:02:55]}  h5 {[%clk 0:02:01]} 8. Qxd3 {[%clk 0:02:54]}  Qb6 {[%clk 0:01:46]} 9. Nf3 {[%clk 0:02:47]}  g6 {[%clk 0:01:35]} 10. Be2 {[%clk 0:02:36]}  h4 {[%clk 0:01:31]} 11. Nf1 {[%clk 0:02:36]}  h3 {[%clk 0:01:32]} 12. g3 {[%clk 0:02:34]}  Nge7 {[%clk 0:01:31]} 13. Ne3 {[%clk 0:02:34]}  Be6 {[%clk 0:01:31]} 14. Nd5 {[%clk 0:02:34]}  Nxd5 {[%clk 0:01:23]} 15. exd5 {[%clk 0:02:35]}  O-O-O {[%clk 0:01:24]} 16. c4 {[%clk 0:02:35]}  Bf5 {[%clk 0:01:24]} 17. Qb3 {[%clk 0:02:35]}  Qxb3 {[%clk 0:01:14]} 18. axb3 {[%clk 0:02:35]}  Nb4 {[%clk 0:01:05]} 19. Rxa7 {[%clk 0:02:33]}  f6 {[%clk 0:01:03]} 20. Ra8+ {[%clk 0:02:25]}  Kc7 {[%clk 0:01:02]} 21. Rxd8 {[%clk 0:02:26]}  Kxd8 {[%clk 0:01:03]} 22. Nh4 {[%clk 0:02:25]}  Bc2 {[%clk 0:00:46]} 23. d3 {[%clk 0:02:25]}  Bxd3 {[%clk 0:00:39]} 24. Bxd3 {[%clk 0:02:23]}  Nxd3+ {[%clk 0:00:40]} 25. Ke2 {[%clk 0:02:23]}  Nxc1+ {[%clk 0:00:37]} 26. Rxc1 {[%clk 0:02:24]}  Rg8 {[%clk 0:00:34]} 27. Ra1 {[%clk 0:02:24]}  Kc7 {[%clk 0:00:25]} 28. Ra8 {[%clk 0:02:24]}  f5 {[%clk 0:00:16]} 29. Nf3 {[%clk 0:02:20]}  e4 {[%clk 0:00:13]} 30. Ng5 {[%clk 0:02:17]}  Rh8 {[%clk 0:00:12]} 31. Rxf8 {[%clk 0:02:16]} 1-0


[Site "https://www.chess.com"]

[Event "Titled Tuesday Blitz September 13 Early 2022"]
[White "Wachinger, Guenther"]
[Black "Ibrahimli, Murad"]
[WhiteFideId "4604261"]
[BlackFideId "13410229"]
[WhiteElo "2212"]
[BlackElo "2109"]
[Result "0-1"]
[Round "10"]
[TimeControl "180+1"]
[Date "2022.09.13"]
[WhiteClock "0:00:01"]
[BlackClock "0:00:25"]

1. e4 {[%clk 0:03:00]}  c6 {[%clk 0:02:59]} 2. d4 {[%clk 0:03:01]}  d5 {[%clk 0:03:00]} 3. e5 {[%clk 0:03:01]}  Bf5 {[%clk 0:02:59]} 4. g4 {[%clk 0:03:02]}  Be4 {[%clk 0:02:54]} 5. f3 {[%clk 0:03:02]}  Bg6 {[%clk 0:02:55]} 6. e6 {[%clk 0:03:02]}  fxe6 {[%clk 0:02:55]} 7. h4 {[%clk 0:02:49]}  e5 {[%clk 0:02:52]} 8. h5 {[%clk 0:02:32]}  Bf7 {[%clk 0:02:51]} 9. dxe5 {[%clk 0:02:32]}  e6 {[%clk 0:02:52]} 10. Nh3 {[%clk 0:02:30]}  Nd7 {[%clk 0:02:43]} 11. f4 {[%clk 0:02:30]}  h6 {[%clk 0:02:37]} 12. Be3 {[%clk 0:02:25]}  Bc5 {[%clk 0:02:35]} 13. Qf3 {[%clk 0:02:21]}  Qb6 {[%clk 0:02:35]} 14. Bxc5 {[%clk 0:02:19]}  Qxb2 {[%clk 0:02:34]} 15. Qc3 {[%clk 0:02:16]}  Qxc3+ {[%clk 0:02:33]} 16. Nxc3 {[%clk 0:02:16]}  Nxc5 {[%clk 0:02:34]} 17. Rb1 {[%clk 0:02:16]}  Ne7 {[%clk 0:02:32]} 18. Nf2 {[%clk 0:02:13]}  O-O-O {[%clk 0:02:31]} 19. Nd3 {[%clk 0:02:13]}  Nxd3+ {[%clk 0:02:30]} 20. Bxd3 {[%clk 0:02:14]}  Rhf8 {[%clk 0:02:29]} 21. Ke2 {[%clk 0:02:13]}  Kc7 {[%clk 0:02:16]} 22. Rbf1 {[%clk 0:01:45]}  a6 {[%clk 0:01:26]} 23. f5 {[%clk 0:01:26]}  c5 {[%clk 0:01:25]} 24. f6 {[%clk 0:01:25]}  gxf6 {[%clk 0:01:25]} 25. exf6 {[%clk 0:01:09]}  Nc6 {[%clk 0:01:23]} 26. Bg6 {[%clk 0:01:02]}  Ne5 {[%clk 0:01:22]} 27. Nd1 {[%clk 0:00:52]}  Rg8 {[%clk 0:01:15]} 28. Nf2 {[%clk 0:00:41]}  Nxg6 {[%clk 0:00:59]} 29. hxg6 {[%clk 0:00:39]}  Rxg6 {[%clk 0:01:00]} 30. g5 {[%clk 0:00:37]}  Rxg5 {[%clk 0:00:57]} 31. Rxh6 {[%clk 0:00:37]}  Kd6 {[%clk 0:00:57]} 32. Rh7 {[%clk 0:00:35]}  Rd7 {[%clk 0:00:52]} 33. c4 {[%clk 0:00:30]}  Bh5+ {[%clk 0:00:48]} 34. Rxh5 {[%clk 0:00:27]}  Rxh5 {[%clk 0:00:49]} 35. Ne4+ {[%clk 0:00:18]}  Kc6 {[%clk 0:00:42]} 36. f7 {[%clk 0:00:18]}  Rxf7 {[%clk 0:00:41]} 37. Rxf7 {[%clk 0:00:17]}  dxe4 {[%clk 0:00:42]} 38. Ke3 {[%clk 0:00:15]}  Rh2 {[%clk 0:00:41]} 39. Rf6 {[%clk 0:00:14]}  Kd6 {[%clk 0:00:38]} 40. Rf7 {[%clk 0:00:14]}  b5 {[%clk 0:00:38]} 41. a4 {[%clk 0:00:12]}  bxa4 {[%clk 0:00:34]} 42. Kxe4 {[%clk 0:00:11]}  Rh4+ {[%clk 0:00:29]} 43. Kd3 {[%clk 0:00:11]}  Rh3+ {[%clk 0:00:27]} 44. Kc2 {[%clk 0:00:08]}  Ke5 {[%clk 0:00:25]} 45. Rd7 {[%clk 0:00:06]}  a3 {[%clk 0:00:25]} 46. Ra7 {[%clk 0:00:03]}  Kd4 {[%clk 0:00:25]} 47. Rxa6 {[%clk 0:00:03]}  e5 {[%clk 0:00:26]} 48. Ra4 {[%clk 0:00:01]}  e4 {[%clk 0:00:25]} 49. Ra8 {[%clk 0:00:01]}  Kxc4 {[%clk 0:00:25]} 0-1


[Site "https://www.chess.com"]

[Event "Titled Tuesday Blitz September 13 Early 2022"]
[White "Xiong, Jeffery"]
[Black "Zhigalko, Sergei"]
[WhiteFideId "2047640"]
[BlackFideId "13502956"]
[WhiteElo "2714"]
[BlackElo "2662"]
[Result "1-0"]
[Round "10"]
[TimeControl "180+1"]
[Date "2022.09.13"]
[WhiteClock "0:00:44"]
[BlackClock "0:00:03"]

1. d4 {[%clk 0:03:00]}  Nf6 {[%clk 0:03:00]} 2. c4 {[%clk 0:03:01]}  e6 {[%clk 0:03:00]} 3. Nf3 {[%clk 0:03:01]}  b6 {[%clk 0:03:00]} 4. g3 {[%clk 0:03:01]}  Ba6 {[%clk 0:03:01]} 5. Nbd2 {[%clk 0:02:59]}  Bb4 {[%clk 0:03:00]} 6. Qc2 {[%clk 0:02:55]}  Bb7 {[%clk 0:03:00]} 7. a3 {[%clk 0:02:55]}  Be4 {[%clk 0:03:00]} 8. Qd1 {[%clk 0:02:52]}  Bxd2+ {[%clk 0:03:00]} 9. Qxd2 {[%clk 0:02:53]}  d6 {[%clk 0:03:00]} 10. Bg2 {[%clk 0:02:53]}  Nbd7 {[%clk 0:03:00]} 11. O-O {[%clk 0:02:53]}  a5 {[%clk 0:02:59]} 12. b3 {[%clk 0:02:53]}  O-O {[%clk 0:02:59]} 13. Bb2 {[%clk 0:02:54]}  h6 {[%clk 0:02:58]} 14. Rfe1 {[%clk 0:02:54]}  Re8 {[%clk 0:02:57]} 15. Qc3 {[%clk 0:02:54]}  Qb8 {[%clk 0:02:55]} 16. Bh3 {[%clk 0:02:54]}  b5 {[%clk 0:02:52]} 17. Nd2 {[%clk 0:02:53]}  bxc4 {[%clk 0:02:52]} 18. bxc4 {[%clk 0:02:53]}  Nb6 {[%clk 0:02:49]} 19. Qb3 {[%clk 0:01:53]}  Nxc4 {[%clk 0:02:20]} 20. Qxb8 {[%clk 0:01:52]}  Rexb8 {[%clk 0:02:20]} 21. Nxc4 {[%clk 0:01:52]}  d5 {[%clk 0:01:50]} 22. Nxa5 {[%clk 0:01:52]}  Rxb2 {[%clk 0:01:33]} 23. Nc6 {[%clk 0:01:51]}  Ra4 {[%clk 0:01:33]} 24. f3 {[%clk 0:01:48]}  Bg6 {[%clk 0:01:25]} 25. Bf1 {[%clk 0:01:43]}  Rb3 {[%clk 0:01:17]} 26. Rec1 {[%clk 0:01:43]}  Ne8 {[%clk 0:00:50]} 27. Kf2 {[%clk 0:01:21]}  Kf8 {[%clk 0:00:46]} 28. Ne5 {[%clk 0:01:20]}  Bh7 {[%clk 0:00:41]} 29. Nd7+ {[%clk 0:01:19]}  Ke7 {[%clk 0:00:37]} 30. Nc5 {[%clk 0:01:20]}  Raxa3 {[%clk 0:00:37]} 31. Nxb3 {[%clk 0:01:21]}  Rxb3 {[%clk 0:00:38]} 32. Ra2 {[%clk 0:01:11]}  h5 {[%clk 0:00:28]} 33. e3 {[%clk 0:01:11]}  Bd3 {[%clk 0:00:21]} 34. Bxd3 {[%clk 0:01:01]}  Rxd3 {[%clk 0:00:22]} 35. Rb1 {[%clk 0:01:02]}  Rc3 {[%clk 0:00:20]} 36. Ke2 {[%clk 0:01:02]}  Nd6 {[%clk 0:00:17]} 37. Kd2 {[%clk 0:01:02]}  Rc6 {[%clk 0:00:13]} 38. Kd3 {[%clk 0:01:03]}  Nc4 {[%clk 0:00:09]} 39. e4 {[%clk 0:01:03]}  Kd6 {[%clk 0:00:04]} 40. Ra7 {[%clk 0:01:00]}  Nb6 {[%clk 0:00:04]} 41. Rb5 {[%clk 0:00:55]}  g6 {[%clk 0:00:02]} 42. Rc5 {[%clk 0:00:55]}  Kd7 {[%clk 0:00:01]} 43. h4 {[%clk 0:00:44]}  Kd6 {[%clk 0:00:01]} 44. Rb7 {[%clk 0:00:42]}  Kd7 {[%clk 0:00:01]} 45. Rxc6 {[%clk 0:00:42]}  Kxc6 {[%clk 0:00:02]} 46. Rb8 {[%clk 0:00:43]}  Nd7 {[%clk 0:00:02]} 47. Re8 {[%clk 0:00:44]}  Kd6 {[%clk 0:00:03]} 48. e5+ {[%clk 0:00:44]}  Nxe5+ {[%clk 0:00:03]} 49. dxe5+ {[%clk 0:00:44]}  Kxe5 {[%clk 0:00:03]} 50. Re7 {[%clk 0:00:44]}  c5 {[%clk 0:00:02]} 51. Rxf7 {[%clk 0:00:44]}  c4+ {[%clk 0:00:03]} 52. Kc3 {[%clk 0:00:44]}  g5 {[%clk 0:00:03]} 53. hxg5 {[%clk 0:00:44]}  d4+ {[%clk 0:00:03]} 54. Kxc4 {[%clk 0:00:44]} 1-0


[Site "https://www.chess.com"]

[Event "Titled Tuesday Blitz September 13 Early 2022"]
[White "Aaditya Dhingra"]
[Black "Papasimakopoulos, Alexandros"]
[WhiteFideId "25678191"]
[BlackFideId "4244125"]
[WhiteElo "1916"]
[BlackElo "2357"]
[Result "0-1"]
[Round "11"]
[TimeControl "180+1"]
[Date "2022.09.13"]
[WhiteClock "0:00:19"]
[BlackClock "0:01:19"]

1. Nf3 {[%clk 0:03:00]}  d5 {[%clk 0:02:57]} 2. c4 {[%clk 0:02:59]}  e6 {[%clk 0:02:54]} 3. g3 {[%clk 0:02:59]}  Nf6 {[%clk 0:02:53]} 4. Bg2 {[%clk 0:02:59]}  Be7 {[%clk 0:02:51]} 5. O-O {[%clk 0:02:59]}  O-O {[%clk 0:02:48]} 6. b3 {[%clk 0:02:59]}  b6 {[%clk 0:02:44]} 7. Bb2 {[%clk 0:02:59]}  Bb7 {[%clk 0:02:44]} 8. cxd5 {[%clk 0:02:57]}  Nxd5 {[%clk 0:02:38]} 9. a3 {[%clk 0:02:53]}  c5 {[%clk 0:02:38]} 10. d4 {[%clk 0:02:51]}  Bf6 {[%clk 0:02:37]} 11. e4 {[%clk 0:02:49]}  Nc7 {[%clk 0:02:34]} 12. e5 {[%clk 0:02:49]}  Be7 {[%clk 0:02:34]} 13. dxc5 {[%clk 0:02:49]}  bxc5 {[%clk 0:02:30]} 14. Nc3 {[%clk 0:02:42]}  Nc6 {[%clk 0:02:26]} 15. Na4 {[%clk 0:02:35]}  Rb8 {[%clk 0:02:22]} 16. Qc1 {[%clk 0:02:16]}  Na6 {[%clk 0:02:16]} 17. Rd1 {[%clk 0:02:13]}  Qc7 {[%clk 0:02:16]} 18. h4 {[%clk 0:02:06]}  h6 {[%clk 0:02:16]} 19. Qf4 {[%clk 0:01:58]}  Na5 {[%clk 0:02:12]} 20. b4 {[%clk 0:01:29]}  cxb4 {[%clk 0:01:59]} 21. axb4 {[%clk 0:01:29]}  Nb3 {[%clk 0:01:47]} 22. Ra3 {[%clk 0:00:45]}  Qc2 {[%clk 0:01:39]} 23. Rd7 {[%clk 0:00:41]}  Bxb4 {[%clk 0:01:28]} 24. Ne1 {[%clk 0:00:40]}  Bxe1 {[%clk 0:01:26]} 25. Bxb7 {[%clk 0:00:33]}  Nac5 {[%clk 0:01:24]} 26. Rc7 {[%clk 0:00:22]}  Rxb7 {[%clk 0:01:20]} 27. Rxb7 {[%clk 0:00:19]}  Nxb7 {[%clk 0:01:19]} 0-1


[Site "https://www.chess.com"]